lending/lending_fUSD_20250121
["ID","MTS","AMOUNT","RATE_DAILY","PERIOD"]
[349773930,1737420657575,-723.87,0.00020518,2]
[349773931,1737420657584,-500.0,0.00020518,2]
[349773932,1737420657593,-567.14,0.00020518,2]
[349773933,1737420657602,-500.0,0.00020518,2]
[349773934,1737420657611,-500.0,0.00020518,2]
[349773935,1737420657620,-500.0,0.00020518,2]
[349773936,1737420657629,-500.0,0.00020518,2]
[349773937,1737420657639,-600.76,0.00020518,2]
[349773938,1737420657649,-500.0,0.00020518,2]
[349773939,1737420657658,-500.0,0.00020518,2]
[349773940,1737420657667,-500.0,0.00020518,2]
[349773941,1737420657678,-541.66,0.00020518,2]
[349773942,1737420657687,-500.0,0.00020518,2]
[349773943,1737420657696,-187.22228015,0.00020519,2]
[349773944,1737420657705,-507.04536644,0.00020519,2]
[349773945,1737420657715,-230.81181001,0.00020521,2]
[349773946,1737420657725,-500.0,0.00020547,2]
[349773947,1737420657734,-500.0,0.00020547,2]
[349773948,1737420657743,-519.16740805,0.00020547,2]
[349773949,1737420657752,-500.0,0.00020547,2]
[349773950,1737420657762,-500.0,0.00020547,2]
[349773951,1737420657771,-500.0,0.00020547,2]
[349773952,1737420657780,-500.0,0.00020547,2]
[349773953,1737420657789,-500.0,0.00020547,2]
[349773954,1737420657798,-500.0,0.00020547,2]
[349773955,1737420657807,-500.0,0.00020547,2]
[349773956,1737420657817,-500.0,0.00020547,2]
[349773957,1737420657826,-500.0,0.00020547,2]
[349773958,1737420657835,-541.66,0.00020547,2]
[349773959,1737420657844,-527.96515096,0.00020547,2]
[349773960,1737420657854,-500.0,0.00020547,2]
[349773961,1737420657863,-500.0,0.00020547,2]
[349773962,1737420657873,-1183.9,0.00020547,2]
[349773963,1737420657882,-505.3,0.00020547,2]
[349773964,1737420657892,-500.0,0.00020547,2]
[349773965,1737420657901,-500.0,0.00020547,2]
[349773966,1737420657911,-500.0,0.00020547,2]
[349773967,1737420657920,-500.0,0.00020547,2]
[349773968,1737420657932,-205.26655479,0.00020547,2]
[349773969,1737420657942,-500.0,0.00020547,2]
[349773970,1737420657951,-500.0,0.00020547,2]
[349773971,1737420657960,-500.0,0.00020547,2]
[349773972,1737420657969,-500.0,0.00020547,2]
[349773973,1737420657979,-500.0,0.00020547,2]
[349773974,1737420657989,-500.0,0.00020547,2]
[349773975,1737420657999,-500.0,0.00020547,2]
[349773976,1737420658008,-500.0,0.00020547,2]
[349773977,1737420658017,-500.0,0.00020547,2]
[349773978,1737420658027,-500.0,0.00020547,2]
[349773979,1737420658037,-500.0,0.00020547,2]
[349773980,1737420658047,-500.0,0.00020547,2]
[349773981,1737420658057,-501.19,0.00020547,2]
[349773982,1737420658066,-500.0,0.00020547,2]
[349773983,1737420658075,-500.0,0.00020547,2]
[349773984,1737420658084,-500.0,0.00020547,2]
[349773985,1737420658093,-500.0,0.00020547,2]
[349773986,1737420658103,-500.0,0.00020547,2]
[349773987,1737420658112,-500.0,0.00020547,2]
[349773988,1737420658121,-500.0,0.00020547,2]
[349773989,1737420658131,-500.0,0.00020547,2]
[349773990,1737420658140,-381.7251839,0.00020547,2]
[349773991,1737420658150,-500.0,0.00020547,2]
[349773992,1737420658159,-500.0,0.00020547,2]
[349773993,1737420658169,-500.0,0.00020547,2]
[349773994,1737420658181,-316.41871707,0.00020547,2]
[349773995,1737420658191,-500.0,0.00020547,2]
[349773996,1737420658200,-500.0,0.00020547,2]
[349773997,1737420658209,-500.0,0.00020547,2]
[349773998,1737420658220,-500.0,0.00020547,2]
[349773999,1737420658231,-500.0,0.00020547,2]
[349774000,1737420658241,-500.0,0.00020547,2]
[349774001,1737420658250,-500.0,0.00020547,2]
[349774002,1737420658259,-500.0,0.00020547,2]
[349774003,1737420658270,-500.0,0.00020547,2]
[349774004,1737420658281,-500.0,0.00020547,2]
[349774005,1737420658291,-572.63,0.00020547,2]
[349774006,1737420658300,-500.0,0.00020547,2]
[349774007,1737420658312,-500.0,0.00020547,2]
[349774008,1737420658322,-500.0,0.00020547,2]
[349774009,1737420658332,-500.0,0.00020547,2]
[349774010,1737420658342,-500.0,0.00020547,2]
[349774011,1737420658351,-548.03150293,0.00020547,2]
[349774012,1737420658361,-500.0,0.00020547,2]
[349774013,1737420658370,-500.0,0.00020547,2]
[349774014,1737420658379,-500.0,0.00020547,2]
[349774015,1737420658389,-500.0,0.00020547,2]
[349774016,1737420658398,-500.0,0.00020547,2]
[349774017,1737420658408,-583.33,0.00020547,2]
[349774018,1737420658419,-500.0,0.00020547,2]
[349774019,1737420658431,-569.92,0.00020547,2]
[349774020,1737420658441,-604.16,0.00020547,2]
[349774021,1737420658450,-500.0,0.00020547,2]
[349774022,1737420658459,-664.29,0.00020547,2]
[349774023,1737420658469,-500.0,0.00020547,2]
[349774024,1737420658479,-500.0,0.00020547,2]
[349774025,1737420658488,-500.0,0.00020547,2]
[349774026,1737420658497,-500.0,0.00020547,2]
[349774027,1737420658507,-500.0,0.00020547,2]
[349774028,1737420658517,-500.0,0.00020547,2]
[349774029,1737420658526,-500.0,0.00020547,2]
[349774030,1737420658536,-687.02,0.00020547,2]
[349774031,1737420658546,-500.0,0.00020547,2]
[349774032,1737420658555,-503.53,0.00020547,2]
[349774033,1737420658565,-641.20432204,0.00020547,2]
[349774034,1737420658575,-500.0,0.00020547,2]
[349774035,1737420658584,-500.0,0.00020547,2]
[349774036,1737420658594,-500.0,0.00020547,2]
[349774037,1737420658603,-500.0,0.00020547,2]
[349774038,1737420658612,-500.0,0.00020547,2]
[349774039,1737420658622,-560.89,0.00020547,2]
[349774040,1737420658632,-500.0,0.00020547,2]
[349774041,1737420658641,-500.0,0.00020547,2]
[349774042,1737420658650,-500.0,0.00020547,2]
[349774043,1737420658659,-500.0,0.00020547,2]
[349774044,1737420658669,-668.45,0.00020547,2]
[349774045,1737420658683,-650.98,0.00020547,2]
[349774046,1737420658692,-500.0,0.00020547,2]
[349774047,1737420658702,-563.68,0.00020547,2]
[349774048,1737420658711,-500.0,0.00020547,2]
[349774049,1737420658721,-500.0,0.00020547,2]
[349774050,1737420658731,-500.0,0.00020547,2]
[349774051,1737420658740,-588.71,0.00020547,2]
[349774052,1737420658750,-500.0,0.00020547,2]
[349774053,1737420658759,-566.19,0.00020547,2]
[349774054,1737420658768,-500.0,0.00020547,2]
[349774055,1737420658777,-500.0,0.00020547,2]
[349774056,1737420658787,-500.0,0.00020547,2]
[349774057,1737420658797,-500.0,0.00020547,2]
[349774058,1737420658806,-529.83,0.00020547,2]
[349774059,1737420658815,-500.0,0.00020547,2]
[349774060,1737420658825,-1697.86,0.00020547,2]
[349774061,1737420658835,-500.0,0.00020547,2]
[349774062,1737420658845,-1013.61,0.00020547,2]
[349774063,1737420658855,-500.0,0.00020547,2]
[349774064,1737420658864,-564.16,0.00020547,2]
[349774065,1737420658875,-500.0,0.00020547,2]
[349774066,1737420658884,-659.43,0.00020547,2]
[349774067,1737420658894,-500.0,0.00020547,2]
[349774068,1737420658904,-606.85,0.00020547,2]
[349774069,1737420658913,-796.12,0.00020547,2]
[349774070,1737420658927,-500.0,0.00020547,2]
[349774071,1737420658937,-716.849871,0.00020547,2]
[349774072,1737420658947,-500.0,0.00020547,2]
[349774073,1737420658957,-500.0,0.00020547,2]
[349774074,1737420659060,-500.0,0.00020547,2]
[349774075,1737420659079,-500.0,0.00020547,2]
[349774076,1737420659088,-500.0,0.00020547,2]
[349774077,1737420659097,-1154.51,0.00020547,2]
[349774078,1737420659106,-500.0,0.00020547,2]
[349774079,1737420659116,-506.96,0.00020547,2]
[349774080,1737420659125,-2225.1,0.00020547,2]
[349774081,1737420659134,-1515.28,0.00020547,2]
[349774082,1737420659143,-882.93,0.00020547,2]
[349774083,1737420659153,-500.0,0.00020547,2]
[349774084,1737420659162,-487.986546,0.00020547,2]
[349774085,1737420659172,-1343.47,0.00020547,2]
[349774086,1737420659181,-881.44,0.00020547,2]
[349774087,1737420659191,-500.0,0.00020547,2]
[349774088,1737420659200,-2159.62,0.00020547,2]
[349774089,1737420659210,-481.52771057,0.00020547,2]
[349774090,1737420659225,-160.24,0.00020547,2]
[349774091,1737420659234,-500.0,0.00020547,2]
[349774092,1737420659244,-1653.02,0.00020547,2]
[349774093,1737420659253,-845.58,0.00020547,2]
[349774094,1737420659263,-433.5724079,0.00020547,2]
[349774095,1737420659274,-500.0,0.00020547,2]
[349774096,1737420659283,-3061.98,0.00020547,2]
[349774097,1737420659294,-500.0,0.00020547,2]
[349774098,1737420659304,-610.57,0.00020547,2]
[349774099,1737420659313,-622.77151322,0.00020547,2]
[349774100,1737420659323,-1451.25,0.00020547,2]
[349774101,1737420659333,-1027.64,0.00020547,2]
[349774102,1737420659342,-500.0,0.00020547,2]
[349774103,1737420659351,-500.0,0.00020547,2]
[349774104,1737420659360,-969.02,0.00020547,2]
[349774105,1737420659369,-1967.24,0.00020547,2]
[349774106,1737420659379,-1111.37,0.00020547,2]
[349774107,1737420659388,-500.0,0.00020547,2]
[349774108,1737420659397,-373.55048217,0.00020547,2]
[349774109,1737420659406,-898.19,0.00020547,2]
[349774110,1737420659416,-980.84,0.00020547,2]
[349774111,1737420659428,-2840.37,0.00020547,2]
[349774112,1737420659437,-1226.71,0.00020547,2]
[349774113,1737420659447,-500.0,0.00020547,2]
[349774114,1737420659456,-652.51,0.00020547,2]
[349774115,1737420659465,-619.63,0.00020547,2]
[349774116,1737420659474,-958.08,0.00020547,2]
[349774117,1737420659484,-1204.91,0.00020547,2]
[349774118,1737420659493,-1210.94,0.00020547,2]
[349774119,1737420659502,-500.0,0.00020547,2]
[349774120,1737420659511,-801.67,0.00020547,2]
[349774121,1737420659521,-500.0,0.00020547,2]
[349774122,1737420659530,-500.0,0.00020547,2]
[349774123,1737420659540,-500.0,0.00020547,2]
[349774124,1737420659550,-997.28,0.00020547,2]
[349774125,1737420659559,-2052.29,0.00020547,2]
[349774126,1737420659571,-1712.99,0.00020547,2]
[349774127,1737420659580,-513.12,0.00020547,2]
[349774128,1737420659590,-1991.53,0.00020547,2]
[349774129,1737420659600,-500.0,0.00020547,2]
[349774130,1737420659609,-1181.16,0.00020547,2]
[349774131,1737420659619,-1416.54,0.00020547,2]
[349774132,1737420659628,-500.0,0.00020547,2]
[349774133,1737420659637,-3603.52,0.00020547,2]
[349774134,1737420659646,-500.0,0.00020547,2]
[349774135,1737420659655,-500.0,0.00020547,2]
[349774136,1737420659665,-2319.77,0.00020547,2]
[349774137,1737420659676,-780.49,0.00020547,2]
[349774138,1737420659685,-1254.23,0.00020547,2]
[349774139,1737420659694,-500.0,0.00020547,2]
[349774140,1737420659703,-500.0,0.00020547,2]
[349774141,1737420659712,-2547.64,0.00020547,2]
[349774142,1737420659722,-500.0,0.00020547,2]
[349774143,1737420659732,-285.64,0.00020547,2]
[349774144,1737420659741,-556.06,0.00020547,2]
[349774145,1737420659751,-1503.59,0.00020547,2]
[349774146,1737420659762,-500.0,0.00020547,2]
[349774147,1737420659772,-500.0,0.00020547,2]
[349774148,1737420659784,-500.0,0.00020547,2]
[349774149,1737420659795,-826.66,0.00020547,2]
[349774150,1737420659806,-500.0,0.00020547,2]
[349774151,1737420659817,-1445.2,0.00020547,2]
[349774152,1737420659828,-549.87,0.00020547,2]
[349774153,1737420659839,-1204.67,0.00020547,2]
[349774154,1737420659851,-883.4,0.00020547,2]
[349774155,1737420659863,-500.0,0.00020547,2]
[349774156,1737420659875,-500.0,0.00020547,2]
[349774157,1737420659887,-500.0,0.00020547,2]
[349774158,1737420659899,-500.0,0.00020547,2]
[349774159,1737420659910,-500.0,0.00020547,2]
[349774160,1737420659921,-1126.47,0.00020547,2]
[349774161,1737420659943,-633.24,0.00020547,2]
[349774162,1737420659955,-2671.26,0.00020547,2]
[349774163,1737420659968,-574.20723353,0.00020547,2]
[349774164,1737420659980,-693.42,0.00020547,2]
[349774165,1737420659991,-1915.82,0.00020547,2]
[349774166,1737420660004,-500.0,0.00020547,2]
[349774167,1737420660016,-500.0,0.00020547,2]
[349774168,1737420660028,-2393.16,0.00020547,2]
[349774169,1737420660039,-500.0,0.00020547,2]
[349774170,1737420660051,-513.39,0.00020547,2]
[349774171,1737420660063,-603.06,0.00020547,2]
[349774172,1737420660076,-1417.44,0.00020547,2]
[349774173,1737420660087,-500.0,0.00020547,2]
[349774174,1737420660097,-500.0,0.00020547,2]
[349774175,1737420660107,-500.0,0.00020547,2]
[349774176,1737420660117,-500.0,0.00020547,2]
[349774177,1737420660127,-500.0,0.00020547,2]
[349774178,1737420660138,-500.0,0.00020547,2]
[349774179,1737420660148,-500.0,0.00020547,2]
[349774180,1737420660157,-500.0,0.00020547,2]
[349774181,1737420660167,-582.27,0.00020547,2]
[349774182,1737420660180,-500.0,0.00020547,2]
[349774183,1737420660190,-1857.25,0.00020547,2]
[349774184,1737420660199,-2242.43,0.00020547,2]
[349774185,1737420660209,-2016.22379923,0.00020559,2]
[349774186,1737420660220,-654.67928511,0.00020566,2]
[349774187,1737420660233,-230.81181001,0.0002059,2]
[349774188,1737420660244,-1000.0,0.00020625,2]
[349774189,1737420660255,-230.81181001,0.00020659,2]
[349774190,1737420660265,-500.0,0.00020673,2]
[349774191,1737420660279,-673.02,0.00020688,2]
[349774192,1737420660290,-500.0,0.00020688,2]
[349774193,1737420660300,-443.21603795,0.00020688,2]
[349774194,1737420660311,-1482.97,0.00020721,2]
[349774195,1737420660321,-500.0,0.00020721,2]
[349774196,1737420660331,-1199.3,0.00020721,2]
[349774197,1737420660341,-551.03,0.00020721,2]
[349774198,1737420660350,-2292.14,0.00020721,2]
[349774199,1737420660360,-500.0,0.00020721,2]
[349774200,1737420660370,-500.0,0.00020721,2]
[349774201,1737420660380,-500.0,0.00020721,2]
[349774202,1737420660389,-500.0,0.00020721,2]
[349774203,1737420660399,-500.0,0.00020721,2]
[349774204,1737420660409,-753.81,0.00020721,2]
[349774205,1737420660418,-597.97,0.00020721,2]
[349774206,1737420660430,-750.01,0.00020721,2]
[349774207,1737420660440,-652.84,0.00020721,2]
[349774208,1737420660449,-1174.84,0.00020721,2]
[349774209,1737420660459,-2187.02,0.00020721,2]
[349774210,1737420660469,-848.77,0.00020721,2]
[349774211,1737420660479,-1671.37,0.00020721,2]
[349774212,1737420660488,-3969.98,0.00020721,2]
[349774213,1737420660499,-500.0,0.00020721,2]
[349774214,1737420660509,-634.19,0.00020721,2]
[349774215,1737420660520,-3283.45,0.00020721,2]
[349774216,1737420660529,-1093.65,0.00020721,2]
[349774217,1737420660539,-654.71,0.00020721,2]
[349774218,1737420660549,-2167.64,0.00020721,2]
[349774219,1737420660558,-636.22,0.00020721,2]
[349774220,1737420660568,-500.0,0.00020721,2]
[349774221,1737420660577,-709.4,0.00020721,2]
[349774222,1737420660587,-1498.52,0.00020721,2]
[349774223,1737420660598,-1044.91,0.00020721,2]
[349774224,1737420660607,-1345.86,0.00020721,2]
[349774225,1737420660618,-500.0,0.00020721,2]
[349774226,1737420660627,-966.72,0.00020721,2]
[349774227,1737420660638,-1000.0,0.00020721,2]
[349774228,1737420660647,-1312.72,0.00020721,2]
[349774229,1737420660657,-615.08,0.00020721,2]
[349774230,1737420660667,-1967.56,0.00020721,2]
[349774231,1737420660680,-230.81181001,0.00020728,2]
[349774232,1737420660689,-19075.48069027,0.00020753,2]
[349774233,1737420660699,-500.0,0.00020792,2]
[349774234,1737420660709,-757.09,0.00020792,2]
[349774235,1737420660719,-500.0,0.00020792,2]
[349774236,1737420660730,-723.87,0.00020792,2]
[349774237,1737420660740,-500.0,0.00020792,2]
[349774238,1737420660750,-567.14,0.00020792,2]
[349774239,1737420660760,-500.0,0.00020792,2]
[349774240,1737420660770,-500.0,0.00020792,2]
[349774241,1737420660780,-500.0,0.00020792,2]
[349774242,1737420660790,-500.0,0.00020792,2]
[349774243,1737420660911,-600.76,0.00020792,2]
[349774244,1737420660921,-500.0,0.00020792,2]
[349774245,1737420660935,-500.0,0.00020792,2]
[349774246,1737420660944,-500.0,0.00020792,2]
[349774247,1737420660954,-541.66,0.00020792,2]
[349774248,1737420660964,-500.0,0.00020792,2]
[349774249,1737420660974,-420.0,0.00020792,2]
[349774250,1737420660984,-230.81181001,0.00020797,2]
[349774251,1737420660994,-171.77,0.00020804,2]
[349774252,1737420661004,-1119.77,0.0002082,2]
[349774253,1737420661013,-500.0,0.00020821,2]
[349774254,1737420661022,-500.0,0.00020821,2]
[349774255,1737420661032,-500.0,0.00020821,2]
[349774256,1737420661041,-500.0,0.00020821,2]
[349774257,1737420661051,-436.3093385,0.00020821,2]
[349774258,1737420661060,-500.0,0.00020821,2]
[349774259,1737420661070,-500.0,0.00020821,2]
[349774260,1737420661079,-500.0,0.00020821,2]
[349774261,1737420661091,-500.0,0.00020821,2]
[349774262,1737420661108,-541.66,0.00020821,2]
[349774263,1737420661118,-500.0,0.00020821,2]
[349774264,1737420661128,-500.0,0.00020821,2]
[349774265,1737420661137,-1183.9,0.00020821,2]
[349774266,1737420661147,-505.3,0.00020821,2]
[349774267,1737420661156,-210.51419676,0.00020821,2]
[349774268,1737420661166,-500.0,0.00020821,2]
[349774269,1737420661180,-498.65,0.00020821,2]
[349774270,1737420661190,-500.0,0.00020821,2]
[349774271,1737420661200,-480.83506749,0.00020821,2]
[349774272,1737420661209,-500.0,0.00020821,2]
[349774273,1737420661221,-500.0,0.00020821,2]
[349774274,1737420661231,-601.07378641,0.00020821,2]
[349774275,1737420661244,-500.0,0.00020821,2]
[349774276,1737420661254,-500.0,0.00020821,2]
[349774277,1737420661265,-500.0,0.00020821,2]
[349774278,1737420661276,-261.50433266,0.00020821,2]
[349774279,1737420661286,-500.0,0.00020821,2]
[349774280,1737420661295,-500.0,0.00020821,2]
[349774281,1737420661306,-500.0,0.00020821,2]
[349774282,1737420661316,-501.19,0.00020821,2]
[349774283,1737420661325,-400.88495016,0.00020821,2]
[349774284,1737420661336,-500.0,0.00020821,2]
[349774285,1737420661346,-500.0,0.00020821,2]
[349774286,1737420661355,-500.0,0.00020821,2]
[349774287,1737420661365,-500.0,0.00020821,2]
[349774288,1737420661375,-500.0,0.00020821,2]
[349774289,1737420661384,-500.0,0.00020821,2]
[349774290,1737420661395,-486.6149173,0.00020821,2]
[349774291,1737420661404,-500.0,0.00020821,2]
[349774292,1737420661414,-554.2,0.00020821,2]
[349774293,1737420661424,-500.0,0.00020821,2]
[349774294,1737420661438,-500.0,0.00020821,2]
[349774295,1737420661448,-500.0,0.00020821,2]
[349774296,1737420661459,-500.0,0.00020821,2]
[349774297,1737420661468,-500.0,0.00020821,2]
[349774298,1737420661478,-500.0,0.00020821,2]
[349774299,1737420661488,-500.0,0.00020821,2]
[349774300,1737420661497,-500.0,0.00020821,2]
[349774301,1737420661507,-500.0,0.00020821,2]
[349774302,1737420661517,-500.0,0.00020821,2]
[349774303,1737420661527,-572.63,0.00020821,2]
[349774304,1737420661536,-500.0,0.00020821,2]
[349774305,1737420661546,-500.0,0.00020821,2]
[349774306,1737420661556,-500.0,0.00020821,2]
[349774307,1737420661565,-500.0,0.00020821,2]
[349774308,1737420661574,-500.0,0.00020821,2]
[349774309,1737420661584,-500.0,0.00020821,2]
[349774310,1737420661594,-500.0,0.00020821,2]
[349774311,1737420661605,-525.82738832,0.00020821,2]
[349774312,1737420661614,-500.0,0.00020821,2]
[349774313,1737420661624,-500.0,0.00020821,2]
[349774314,1737420661634,-583.33,0.00020821,2]
[349774315,1737420661644,-500.0,0.00020821,2]
[349774316,1737420661657,-569.92,0.00020821,2]
[349774317,1737420661671,-604.16,0.00020821,2]
[349774318,1737420661686,-500.0,0.00020821,2]
[349774319,1737420661696,-664.29,0.00020821,2]
[349774320,1737420661705,-500.0,0.00020821,2]
[349774321,1737420661715,-604.21,0.00020821,2]
[349774322,1737420661726,-500.0,0.00020821,2]
[349774323,1737420661738,-500.0,0.00020821,2]
[349774324,1737420661748,-500.0,0.00020821,2]
[349774325,1737420661758,-500.0,0.00020821,2]
[349774326,1737420661774,-500.0,0.00020821,2]
[349774327,1737420661783,-687.02,0.00020821,2]
[349774328,1737420661795,-500.0,0.00020821,2]
[349774329,1737420661805,-500.0,0.00020821,2]
[349774330,1737420661815,-500.0,0.00020821,2]
[349774331,1737420661825,-500.0,0.00020821,2]
[349774332,1737420661834,-500.0,0.00020821,2]
[349774333,1737420661844,-560.89,0.00020821,2]
[349774334,1737420661858,-500.0,0.00020821,2]
[349774335,1737420661870,-500.0,0.00020821,2]
[349774336,1737420661880,-500.0,0.00020821,2]
[349774337,1737420661891,-500.0,0.00020821,2]
[349774338,1737420661902,-668.45,0.00020821,2]
[349774339,1737420661912,-650.98,0.00020821,2]
[349774340,1737420661922,-500.0,0.00020821,2]
[349774341,1737420661935,-563.68,0.00020821,2]
[349774342,1737420661943,-500.0,0.00020821,2]
[349774343,1737420661952,-500.0,0.00020821,2]
[349774344,1737420661959,-238.29,0.00020821,2]
[349774345,1737420661966,-588.71,0.00020821,2]
[349774346,1737420661975,-500.0,0.00020821,2]
[349774347,1737420661985,-566.19,0.00020821,2]
[349774348,1737420661995,-500.0,0.00020821,2]
[349774349,1737420662004,-500.0,0.00020821,2]
[349774350,1737420662014,-500.0,0.00020821,2]
[349774351,1737420662023,-500.0,0.00020821,2]
[349774352,1737420662032,-529.83,0.00020821,2]
[349774353,1737420662041,-500.0,0.00020821,2]
[349774354,1737420662051,-1697.86,0.00020821,2]
[349774355,1737420662060,-500.0,0.00020821,2]
[349774356,1737420662069,-500.0,0.00020821,2]
[349774357,1737420662079,-1013.61,0.00020821,2]
[349774358,1737420662088,-564.16,0.00020821,2]
[349774359,1737420662097,-500.0,0.00020821,2]
[349774360,1737420662107,-659.43,0.00020821,2]
[349774361,1737420662116,-606.85,0.00020821,2]
[349774362,1737420662125,-796.12,0.00020821,2]
[349774363,1737420662134,-500.0,0.00020821,2]
[349774364,1737420662144,-716.849871,0.00020821,2]
[349774365,1737420662153,-500.0,0.00020821,2]
[349774366,1737420662161,-500.0,0.00020821,2]
[349774367,1737420662171,-500.0,0.00020821,2]
[349774368,1737420662183,-157.795335,0.00020821,2]
[349774369,1737420662192,-500.0,0.00020821,2]
[349774370,1737420662201,-500.0,0.00020821,2]
[349774371,1737420662210,-1154.51,0.00020821,2]
[349774372,1737420662224,-500.0,0.00020821,2]
[349774373,1737420662234,-506.96,0.00020821,2]
[349774374,1737420662244,-2225.1,0.00020821,2]
[349774375,1737420662253,-1515.28,0.00020821,2]
[349774376,1737420662265,-882.93,0.00020821,2]
[349774377,1737420662276,-500.0,0.00020821,2]
[349774378,1737420662286,-487.986546,0.00020821,2]
[349774379,1737420662296,-1343.47,0.00020821,2]
[349774380,1737420662306,-881.44,0.00020821,2]
[349774381,1737420662316,-500.0,0.00020821,2]
[349774382,1737420662325,-2159.62,0.00020821,2]
[349774383,1737420662335,-500.0,0.00020821,2]
[349774384,1737420662344,-1653.02,0.00020821,2]
[349774385,1737420662354,-845.58,0.00020821,2]
[349774386,1737420662363,-500.0,0.00020821,2]
[349774387,1737420662372,-3061.98,0.00020821,2]
[349774388,1737420662381,-500.0,0.00020821,2]
[349774389,1737420662391,-610.57,0.00020821,2]
[349774390,1737420662400,-1451.25,0.00020821,2]
[349774391,1737420662410,-1027.64,0.00020821,2]
[349774392,1737420662419,-500.0,0.00020821,2]
[349774393,1737420662433,-500.0,0.00020821,2]
[349774394,1737420662443,-969.02,0.00020821,2]
[349774395,1737420662453,-1967.24,0.00020821,2]
[349774396,1737420662464,-1111.37,0.00020821,2]
[349774397,1737420662474,-500.0,0.00020821,2]
[349774398,1737420662579,-898.19,0.00020821,2]
[349774399,1737420662588,-980.84,0.00020821,2]
[349774400,1737420662598,-2840.37,0.00020821,2]
[349774401,1737420662607,-1226.71,0.00020821,2]
[349774402,1737420662616,-500.0,0.00020821,2]
[349774403,1737420662625,-652.51,0.00020821,2]
[349774404,1737420662635,-619.63,0.00020821,2]
[349774405,1737420662644,-958.08,0.00020821,2]
[349774406,1737420662653,-1204.91,0.00020821,2]
[349774407,1737420662663,-1210.94,0.00020821,2]
[349774408,1737420662672,-801.67,0.00020821,2]
[349774409,1737420662685,-500.0,0.00020821,2]
[349774410,1737420662694,-500.0,0.00020821,2]
[349774411,1737420662704,-500.0,0.00020821,2]
[349774412,1737420662713,-997.28,0.00020821,2]
[349774413,1737420662723,-2052.29,0.00020821,2]
[349774414,1737420662733,-1712.99,0.00020821,2]
[349774415,1737420662743,-513.12,0.00020821,2]
[349774416,1737420662752,-1991.53,0.00020821,2]
[349774417,1737420662762,-412.9,0.00020821,2]
[349774418,1737420662771,-1181.16,0.00020821,2]
[349774419,1737420662780,-1416.54,0.00020821,2]
[349774420,1737420662790,-500.0,0.00020821,2]
[349774421,1737420662799,-3603.52,0.00020821,2]
[349774422,1737420662809,-500.0,0.00020821,2]
[349774423,1737420662818,-500.0,0.00020821,2]
[349774424,1737420662828,-2319.77,0.00020821,2]
[349774425,1737420662837,-780.49,0.00020821,2]
[349774426,1737420662846,-1254.23,0.00020821,2]
[349774427,1737420662855,-500.0,0.00020821,2]
[349774428,1737420662864,-500.0,0.00020821,2]
[349774429,1737420662874,-2547.64,0.00020821,2]